{"text_format":"1","workbook":"xlsx","n_sheets":5,"sheets":["Tauragė","Telšiai","Trakai","Ukmergės","Varėna"],"not_rendered":{"charts":0,"images":0,"macros":0,"external_links":0,"defined_names":0,"comments":0,"pivot_tables":0},"unopened":[],"bounds":{"document_bytes":16777216,"sheet_cells":100000,"rows_first":2000,"rows_last":500,"rows_between":2000,"halvings":0,"cell_chars":16384,"cell_head_chars":4096},"cells_cut":0,"cells_raw":0,"read":"whole","date_system":"1900"}

{"sheet":"Tauragė","index":0,"n_rows":35,"n_cols":7,"rows_kept":35,"cut":false,"hidden":false,"merged":[[0,0,0,9],[31,0,31,2],[1,2,1,4],[24,0,24,2],[29,0,30,0],[29,1,30,1],[29,2,30,2],[15,0,15,2],[22,0,23,0],[22,1,23,1],[22,2,23,2],[13,0,14,0],[13,1,14,1],[13,2,14,2],[13,3,13,6],[3,0,3,2]]}
["VĮ Valstybinių miškų urėdijos Tauragės  regioninio padalinio informacija apie perkamus miškininkystės paslaugų kiekius 2025 metams"]
["Eil. ","Paslaugų grupės ir paslaugų pavadinimai","Preliminarios paslaugų apimtys"]
[1,"Želdaviečių paruošimas miškų sodinimui, želdinių ir žėlinių priežiūra, jaunuolynų ugdymas, griovių šlaitų ir pagriovių, pakelių, kvartalinių ir ribinių linijų priežiūra","Mato vnt.","Ringių girininkija 1","Pagramančio, Ringių, Batakių,  girininkijos"]
["Pirkimo objekto dalies numeris",null,null,1,2]
["1.","Želdavietės paruošimas miško sodmenų sodinimui šalinant nepageidaujamus medžius, krūmus, žolinę augmeniją","ha",23]
["2.","Miško želdinių ir žėlinių  priežiūra šalinant žabus ir žolinę augmeniją","ha",50]
["3.","Jaunuolynų ugdymas ir/ar retinimo kirtimai, negaminant likvidinės medienos ","ha",22]
["4.","Griovių šlaitų ir pagriovių priežiūra","ha",0]
["5.","Pakelių priežiūra","km",0,50]
["6.","kvartalinių ir ribinių linijų priežūra","km",0]
[null,null,null,{"$f":"+D5*301+D6*263+D7*299+D8*301+D9*53+D10*126","v":26651},{"$f":"+E5*301+E6*263+E7*299+E8*301+E9*53+E10*126","v":2650}]
[null,null,null,{"$f":"+D11*3*1.3","v":103938.90000000001},{"$f":"+E11*3*1.3","v":10335}]
[]
["3.","Miško sodmenų sodinimas, želdinių ir žėlinių medelių ir jų liemenų apsauga nuo kanopinių žvėrių bei vabzdžių daromos žalos  ","Mato vnt.","Preliminarios paslaugų apimtys"]
[null,null,null,"Ringių girininkija 2","Batakių girininkija","Balskų girininkija","Sakalinės girininkija"]
["Pirkimo objekto dalies numeris",null,null,3,4,5,6]
["8.","Miško atkūrimas, įveisimas ir atsodinimas (medelių ir krūmų sodinimas)","tūkst. vnt.",124,88,110,95]
["9.","Želdinių, žėlinių apsauga nuo kanopinių žvėrių bei vabzdžių daromos žalos ","tūkst. vnt.",214,0,280,400]
["10.","Želdinių, žėlinių ir medelių kamienų apsauga nuo kanopinių žvėrių daromos žalos","tūkst. vnt.",20,0,10,40]
[null,null,null,{"$f":"+D17*178+D18*27+D19*390","v":35650},{"$f":"+E17*178+E18*27+E19*390","v":15664},31040,43310]
[null,null,null,{"$f":"+D20*3*1.3","v":139035},{"$f":"+E20*3*1.3","v":61089.599999999999},121056,168909]
[]
["4.","Želdinių, žėlinių apsauga nuo kanopinių žvėrių daromos žalos, tveriant vielos tinklo tvorą","Mato vnt.","Preliminarios paslaugų apimtys"]
[null,null,null,"Pagramančio, Ringių, Tauragės, Sakalinės girininkijos"]
["Pirkimo objekto dalies numeris",null,null,7]
["11.","Želdinių, žėlinių apsauga nuo kanopinių žvėrių daromos žalos, tveriant vielos tinklo tvorą ","m",7800]
[null,null,null,{"$f":"+D26*1.85","v":14430}]
[null,null,null,{"$f":"+D27*3*1.3","v":56277}]
[]
["5.","Sodmenų transportavimo paslaugos","Mato vnt.","Preliminarios paslaugų apimtys"]
[null,null,null,"Ringių girininkija 3"]
["Pirkimo objekto dalies numeris",null,null,8]
["12.","Sodmenų transportavimo paslaugos ","km",200]
[null,null,null,{"$f":"+D33*1.5","v":300}]
[null,null,null,{"$f":"+D34*3*1.3","v":1170}]

{"sheet":"Telšiai","index":1,"n_rows":10,"n_cols":6,"rows_kept":10,"cut":false,"hidden":false,"merged":[[2,1,3,1],[2,2,3,2],[2,3,2,5],[4,0,4,2],[0,0,0,8],[1,2,1,5],[2,0,3,0]]}
["VĮ Valstybinių miškų urėdijos Telšių regioninio padalinio informacija apie perkamus miškininkystės paslaugų kiekius 2025 metams"]
["Eil. ","Paslaugų grupės ir paslaugų pavadinimai","Preliminarios paslaugų apimtys"]
["3.","Miško sodmenų sodinimas, želdinių ir žėlinių medelių ir jų liemenų apsauga nuo kanopinių žvėrių bei vabzdžių daromos žalos  ","Mato vnt.","Preliminarios paslaugų apimtys"]
[null,null,null,"Varnių girininkija","Girėnų girininkija 1","Girėnų girininkija 2"]
["Pirkimo objekto dalies numeris",null,null,9,10,11]
["8.","Miško atkūrimas, įveisimas ir atsodinimas (medelių ir krūmų sodinimas)","tūkst. vnt.",50,35,35]
["9.","Želdinių, žėlinių apsauga nuo kanopinių žvėrių bei vabzdžių daromos žalos ","tūkst. vnt.",0,25,25]
["10.","Želdinių, žėlinių ir medelių kamienų apsauga nuo kanopinių žvėrių daromos žalos","tūkst. vnt.",0,3,3]
[null,null,null,{"$f":"+D6*178+D7*27+D8*390","v":8900},{"$f":"+E6*178+E7*27+E8*390","v":8075},8075]
[null,null,null,{"$f":"+D9*3*1.3","v":34710},{"$f":"+E9*3*1.3","v":31492.5},31492.5]

{"sheet":"Trakai","index":2,"n_rows":28,"n_cols":11,"rows_kept":28,"cut":false,"hidden":false,"merged":[[24,0,24,2],[13,3,13,8],[22,3,22,4],[3,0,3,2],[0,0,0,13],[1,2,1,10],[13,0,14,0],[13,1,14,1],[13,2,14,2],[15,0,15,2],[22,0,23,0],[22,1,23,1],[22,2,23,2]]}
["VĮ Valstybinių miškų urėdijos Trakų regioninio padalinio informacija apie perkamus miškininkystės paslaugų kiekius 2025 metams"]
["Eil. ","Paslaugų grupės ir paslaugų pavadinimai","Preliminarios paslaugų apimtys"]
[1,"Želdaviečių paruošimas miškų sodinimui, želdinių ir žėlinių priežiūra, jaunuolynų ugdymas, griovių šlaitų ir pagriovių, pakelių, kvartalinių ir ribinių linijų priežiūra","Mato vnt.","Aukštadvario girininkija 1","Ropėjų girininkija 1","Žeronių girininkija 1","Semeliškių girininkija 1","Vievio girininkija","Pravieniškių girininkija","Palomenės girininkija 1","Kruonio girininkija"]
["Pirkimo objekto dalies numeris",null,null,12,13,14,15,16,17,18,19]
["1.","Želdavietės paruošimas miško sodmenų sodinimui šalinant nepageidaujamus medžius, krūmus, žolinę augmeniją","ha",2,2,2,2,0,4,1,4]
["2.","Miško želdinių ir žėlinių  priežiūra šalinant žabus ir žolinę augmeniją","ha",70,30,100,80,30,70,40,80]
["3.","Jaunuolynų ugdymas ir/ar retinimo kirtimai, negaminant likvidinės medienos ","ha",30,20,60,60,0,50,20,70]
["4.","Griovių šlaitų ir pagriovių priežiūra","ha",1,2,1,4,0,5,5,0]
["5.","Pakelių priežiūra","km",10,10,10,10,5,8,5,5]
["6.","kvartalinių ir ribinių linijų priežūra","km",5,15,20,15,10,10,10,5]
[null,null,null,{"$f":"+D5*301+D6*263+D7*299+D8*301+D9*53+D10*126","v":29443},{"$f":"+E5*301+E6*263+E7*299+E8*301+E9*53+E10*126","v":17494},48193,43206,9415,37753,19831,44069]
[null,null,null,{"$f":"+D11*3*1.3","v":114827.7},{"$f":"+E11*3*1.3","v":68226.600000000006},187952.7,168503.4,36718.5,147236.70000000001,77340.900000000009,171869.1]
[]
["3.","Miško sodmenų sodinimas, želdinių ir žėlinių medelių ir jų liemenų apsauga nuo kanopinių žvėrių bei vabzdžių daromos žalos  ","Mato vnt.","Preliminarios paslaugų apimtys"]
[null,null,null,"Aukštadvario girininkija 2"," Ropėjų girininkija 2","Žeronių girininkija 2","Semeliškių girininkija 2","Rūdiškių girininkija","Palomenės girininkija 2"]
["Pirkimo objekto dalies numeris",null,null,20,21,22,23,24,25]
["8.","Miško atkūrimas, įveisimas ir atsodinimas (medelių ir krūmų sodinimas)","tūkst. vnt.",70,20,70,220,100,40]
["9.","Želdinių, žėlinių apsauga nuo kanopinių žvėrių bei vabzdžių daromos žalos ","tūkst. vnt.",25,120,300,260,30,100]
["10.","Želdinių, žėlinių ir medelių kamienų apsauga nuo kanopinių žvėrių daromos žalos","tūkst. vnt.",5,0,0,5,5,5]
[null,null,null,{"$f":"+D17*178+D18*27+D19*390","v":15085},{"$f":"+E17*178+E18*27+E19*390","v":6800},20560,48130,20560,11770]
[null,null,null,{"$f":"+D20*3*1.3","v":58831.5},{"$f":"+E20*3*1.3","v":26520},80184,187707,80184,45903]
[]
["4.","Želdinių, žėlinių apsauga nuo kanopinių žvėrių daromos žalos, tveriant vielos tinklo tvorą","Mato vnt.","Preliminarios paslaugų apimtys"]
[null,null,null,"RP teritorija 1","RP teritorija 2"]
["Pirkimo objekto dalies numeris",null,null,26,27]
["11.","Želdinių, žėlinių apsauga nuo kanopinių žvėrių daromos žalos, tveriant vielos tinklo tvorą ","m",8000,8000]
[null,null,null,{"$f":"+D26*1.85","v":14800},{"$f":"+E26*1.85","v":14800}]
[null,null,null,{"$f":"+D27*3*1.3","v":57720},{"$f":"+E27*3*1.3","v":57720}]

{"sheet":"Ukmergės","index":3,"n_rows":7,"n_cols":4,"rows_kept":7,"cut":false,"hidden":false,"merged":[[1,0,2,0],[1,1,2,1],[1,2,2,2],[3,0,3,2],[0,0,0,7]]}
["VĮ Valstybinių miškų urėdijos  Ukmergės regioninio padalinio informacija apie perkamus miškininkystės paslaugų kiekius 2025 metams"]
["4.","Želdinių, žėlinių apsauga nuo kanopinių žvėrių daromos žalos, tveriant vielos tinklo tvorą","Mato vnt.","Preliminarios paslaugų apimtys"]
[null,null,null,"Ukmergės regioninis padalinys"]
["Pirkimo objekto dalies numeris",null,null,28]
["11.","Želdinių, žėlinių apsauga nuo kanopinių žvėrių daromos žalos, tveriant vielos tinklo tvorą ","m",10000]
[null,null,null,{"$f":"+D5*1.85","v":18500}]
[null,null,null,{"$f":"+D6*3*1.3","v":72150}]

{"sheet":"Varėna","index":4,"n_rows":21,"n_cols":8,"rows_kept":21,"cut":false,"hidden":false,"merged":[[15,0,15,2],[13,3,13,5],[3,0,3,2],[0,0,0,10],[1,2,1,7],[13,0,14,0],[13,1,14,1],[13,2,14,2]]}
["VĮ Valstybinių miškų urėdijos Varėnos regioninio padalinio informacija apie perkamus miškininkystės paslaugų kiekius 2025 metams"]
["Eil. ","Paslaugų grupės ir paslaugų pavadinimai","Preliminarios paslaugų apimtys"]
[1,"Želdaviečių paruošimas miškų sodinimui, želdinių ir žėlinių priežiūra, jaunuolynų ugdymas, griovių šlaitų ir pagriovių, pakelių, kvartalinių ir ribinių linijų priežiūra","Mato vnt.","Perlojos girininkija","Kaniavos girininkija","Glūko girininkija","Matuizų girininkija 1","Žygmantiškių girininkija 1"]
["Pirkimo objekto dalies numeris",null,null,29,30,31,32,33]
["1.","Želdavietės paruošimas miško sodmenų sodinimui šalinant nepageidaujamus medžius, krūmus, žolinę augmeniją","ha"]
["2.","Miško želdinių ir žėlinių  priežiūra šalinant žabus ir žolinę augmeniją","ha",128,null,60,80,70]
["3.","Jaunuolynų ugdymas ir/ar retinimo kirtimai, negaminant likvidinės medienos ","ha",29,50,90]
["4.","Griovių šlaitų ir pagriovių priežiūra","ha"]
["5.","Pakelių priežiūra","km"]
["6.","kvartalinių ir ribinių linijų priežūra","km"]
[null,null,null,{"$f":"+D5*301+D6*263+D7*299+D8*301+D9*53+D10*126","v":42335},{"$f":"+E5*301+E6*263+E7*299+E8*301+E9*53+E10*126","v":14950},42690,21040,18410]
[null,null,null,{"$f":"+D11*3*1.3","v":165106.5},{"$f":"+E11*3*1.3","v":58305},166491,82056,71799]
[]
["3.","Miško sodmenų sodinimas, želdinių ir žėlinių medelių ir jų liemenų apsauga nuo kanopinių žvėrių bei vabzdžių daromos žalos  ","Mato vnt.","Preliminarios paslaugų apimtys"]
[null,null,null,"Perlojos, Marcinkonių girininkijos","Žygmantiškių  girininkija 2","Matuizų girininkija 2"]
["Pirkimo objekto dalies numeris",null,null,34,35,36]
["8.","Miško atkūrimas, įveisimas ir atsodinimas (medelių ir krūmų sodinimas)","tūkst. vnt."]
["9.","Želdinių, žėlinių apsauga nuo kanopinių žvėrių bei vabzdžių daromos žalos ","tūkst. vnt.",670,538,430]
["10.","Želdinių, žėlinių ir medelių kamienų apsauga nuo kanopinių žvėrių daromos žalos","tūkst. vnt."]
[null,null,null,{"$f":"+D17*178+D18*27+D19*390","v":18090},{"$f":"+E17*178+E18*27+E19*390","v":14526},11610]
[null,null,null,{"$f":"+D20*3*1.3","v":70551},{"$f":"+E20*3*1.3","v":56651.4},45279]